[Event "Xtracon Invite Chess 2020"]
[Site "Vaerloese"]
[Date "2020.01.17"]
[Round "7.3"]
[White "Kristensen, Kaare Hove"]
[Black "Yankelevich, Lev"]
[Result "0-1"]
[ECO "E76"]
[WhiteElo "2350"]
[BlackElo "2483"]
[Annotator "ChessBase"]
[PlyCount "88"]
[EventDate "2020.01.13"]
[EventType "tourn"]
[EventCountry "DEN"]
[SourceTitle "playchess.com"]
[Source "ChessBase"]
[SourceQuality "1"]
[TimeControl "40/5400+30:1800+30"]

1. c4 {[%emt 0:00:00]} g6 {[%emt 0:00:30]} 2. Nc3 {[%emt 0:00:13]} Bg7 {[%emt 0:00:29]} 3. d4 {[%emt 0:00:20]} Nf6 {[%emt 0:00:29]} 4. e4 {[%emt 0:00:16]} d6 {[%emt 0:00:03]} 5. f4 {[%emt 0:00:43]} c5 {[%emt 0:01:28]} 6. dxc5 {[%emt 0:00:50]} O-O {[%emt 0:00:07]} 7. Nf3 {[%emt 0:05:27]} Na6 {[%emt 0:00:11]} 8. cxd6 {[%emt 0:09:11]} exd6 {[%emt 0:01:51]} 9. Bd3 {[%emt 0:05:02]} Qb6 {[%emt 0:00:03]} 10. Qe2 {[%emt 0:04:20]} Nc5 {[%emt 0:00:13]} 11. Rb1 {[%emt 0:24:43]} Re8 {[%emt 0:34:02]} 12. Be3 {[%emt 0:04:01]} Bf5 {[%emt 0:03:08]} 13. Bxc5 {[%emt 0:16:36]} Qxc5 {[%emt 0:00:54]} 14. Kd2 {[%emt 0:01:38]} Nxe4+ {[%emt 0:05:16]} 15. Nxe4 {[%emt 0:00:36]} Qb4+ {[%emt 0:06:34]} 16. Kd1 {[%emt 0:02:43]} d5 {[%emt 0:06:35]} 17. a3 {[%emt 0:01:56]} Qa4+ {[%emt 0:07:16]} 18. b3 {[%emt 0:04:15]} Qd7 {[%emt 0:01:22]} 19. cxd5 {[%emt 0:01:20]} Bxe4 {[%emt 0:06:01]} 20. Bxe4 {[%emt 0:00:51]} f5 {[%emt 0:00:02]} 21. Ne5 {[%emt 0:03:14]} Bxe5 {[%emt 0:00:18]} 22. Bf3 {[%emt 0:01:10]} Bxf4 {[%emt 0:00:34]} 23. Qc4 {[%emt 0:01:20]} Qd6 {[%emt 0:00:06]} 24. Re1 {[%emt 0:03:23]} Bxh2 {[%emt 0:01:25]} 25. Rxe8+ {[%emt 0:00:48]} Rxe8 {[%emt 0:00:02]} 26. Kc2 {[%emt 0:01:03]} Re7 {[%emt 0:00:13]} 27. Kb2 {[%emt 0:01:36]} Rc7 {[%emt 0:00:25]} 28. Qd3 {[%emt 0:00:52]} Be5+ {[%emt 0:05:51]} 29. Ka2 {[%emt 0:00:06]} Rc3 {[%emt 0:00:03]} 30. Qe2 {[%emt 0:00:22]} Qc7 {[%emt 0:00:30]} 31. Rb2 {[%emt 0:00:33]} Rc1 {[%emt 0:00:15]} 32. d6 {[%emt 0:01:25]} Qxd6 {[%emt 0:00:05]} 33. Rb1 {[%emt 0:00:30]} Rxb1 {[%emt 0:05:47]} 34. Kxb1 {[%emt 0:00:10]} Qd4 {[%emt 0:00:02]} 35. b4 {[%emt 0:04:09]} b6 {[%emt 0:03:39]} 36. Ka2 {[%emt 0:00:24]} Qc3 {[%emt 0:01:07]} 37. g4 {[%emt 0:01:03]} fxg4 {[%emt 0:00:22]} 38. Bxg4 {[%emt 0:00:05]} Kg7 {[%emt 0:00:22]} 39. Bf3 {[%emt 0:00:55]} a5 {[%emt 0:01:01]} 40. bxa5 {[%emt 0:00:49]} bxa5 {[%emt 0:00:02]} 41. a4 {[%emt 0:03:24]} h5 {[%emt 0:06:34]} 42. Be4 {[%emt 0:06:53]} h4 {[%emt 0:00:05]} 43. Qg2 {[%emt 0:01:54]} Qc4+ {[%emt 0:00:09]} 44. Ka3 {[%emt 0:01:05]} Qb4+ {[%emt 0:00:04]} 0-1

[Event "Xtracon Invite Chess 2020"]
[Site "Vaerloese"]
[Date "2020.01.17"]
[Round "7.4"]
[White "Sveshnikov, Evgeny"]
[Black "Brunello, Sabino"]
[Result "1-0"]
[ECO "B99"]
[WhiteElo "2481"]
[BlackElo "2536"]
[Annotator "ChessBase"]
[PlyCount "79"]
[EventDate "2020.01.13"]
[EventType "tourn"]
[EventCountry "DEN"]
[SourceTitle "playchess.com"]
[Source "ChessBase"]
[SourceQuality "1"]
[TimeControl "40/5400+30:1800+30"]

1. e4 {[%emt 0:00:07]} c5 {[%emt 0:00:46]} 2. Nf3 {[%emt 0:01:10]} d6 {[%emt 0:02:14]} 3. d4 {[%emt 0:00:28]} cxd4 {[%emt 0:00:10]} 4. Nxd4 {[%emt 0:00:06]} Nf6 {[%emt 0:00:03]} 5. Nc3 {[%emt 0:00:07]} a6 {[%emt 0:01:32]} 6. Bg5 {[%emt 0:00:12]} e6 {[%emt 0:00:47]} 7. f4 {[%emt 0:00:06]} Nbd7 {[%emt 0:00:19]} 8. Qf3 {[%emt 0:07:26]} Qc7 {[%emt 0:01:42]} 9. O-O-O {[%emt 0:02:00]} Be7 {[%emt 0:03:24]} 10. f5 {[%emt 0:04:48]} e5 {[%emt 0:08:01]} 11. Nb3 {[%emt 0:02:35]} b5 {[%emt 0:01:01]} 12. a3 {[%emt 0:07:31]} Bb7 {[%emt 0:19:39]} 13. Bxf6 {[%emt 0:18:39]} Nxf6 {[%emt 0:02:39]} 14. g4 {[%emt 0:04:48]} Rc8 {[%emt 0:00:16]} 15. Bd3 {[%emt 0:00:11]} h6 {[%emt 0:20:39]} 16. h4 {[%emt 0:00:52]} h5 {[%emt 0:00:38]} 17. g5 {[%emt 0:01:01]} Ng4 {[%emt 0:00:02]} 18. Nd5 {[%emt 0:09:32]} Bxd5 {[%emt 0:01:29]} 19. exd5 {[%emt 0:00:03]} Qb6 {[%emt 0:10:23]} 20. Rd2 {[%emt 0:14:26]} f6 {[%emt 0:04:07]} 21. g6 {[%emt 0:01:13]} Bd8 {[%emt 0:10:15]} 22. Re1 {[%emt 0:01:37]} Kd7 {[%emt 0:00:10]} 23. Kb1 {[%emt 0:01:55]} Qa7 {[%emt 0:01:43]} 24. Re4 {[%emt 0:05:42]} Qg1+ {[%emt 0:00:44]} 25. Ka2 {[%emt 0:00:45]} Bb6 {[%emt 0:01:54]} 26. Rg2 {[%emt 0:03:02]} Qh1 {[%emt 0:02:24]} 27. Qe2 {[%emt 0:00:02]} Ke7 {[%emt 0:02:12]} 28. Nd2 {[%emt 0:05:49]} Qxh4 {[%emt 0:01:07]} 29. c4 {[%emt 0:01:59]} Qh1 {[%emt 0:01:31]} 30. cxb5 {[%emt 0:00:19]} axb5 {[%emt 0:00:39]} 31. Bxb5 {[%emt 0:02:50]} Rc1 {[%emt 0:01:19]} 32. Nb3 {[%emt 0:00:36]} Rhc8 {[%emt 0:01:13]} 33. Bc6 {[%emt 0:00:37]} R8xc6 {[%emt 0:00:45]} 34. dxc6 {[%emt 0:00:02]} Rxc6 {[%emt 0:00:10]} 35. Qb5 {[%emt 0:00:57]} Kd7 {[%emt 0:00:02]} 36. Ree2 {[%emt 0:01:07]} Ne3 {[%emt 0:01:21]} 37. Rh2 {[%emt 0:01:35]} Qf3 {[%emt 0:00:24]} 38. Rxe3 {[%emt 0:00:30]} Qxe3 {[%emt 0:00:36]} 39. Rxh5 {[%emt 0:00:36]} Qe4 {[%emt 0:00:38]} 40. Rh7 {[%emt 0:00:16]} 1-0

[Event "Xtracon Invite Chess 2020"]
[Site "Vaerloese"]
[Date "2020.01.17"]
[Round "7.5"]
[White "Sylvan, Jacob"]
[Black "Olsen, Filip Boe"]
[Result "1/2-1/2"]
[ECO "A13"]
[WhiteElo "2325"]
[BlackElo "2353"]
[Annotator "ChessBase"]
[PlyCount "103"]
[EventDate "2020.01.13"]
[EventType "tourn"]
[EventCountry "DEN"]
[SourceTitle "playchess.com"]
[Source "ChessBase"]
[SourceQuality "1"]
[TimeControl "40/5400+30:1800+30"]

1. c4 {[%emt 0:00:00]} e6 {[%emt 0:00:00]} 2. g3 d5 {[%emt 0:00:00]} 3. Bg2 {[%emt 0:00:00]} Nf6 {[%emt 0:00:00]} 4. Nf3 {[%emt 0:00:04]} d4 {[%emt 0:00:07]} 5. e3 {[%emt 0:03:56]} c5 {[%emt 0:00:13]} 6. exd4 {[%emt 0:00:36]} cxd4 {[%emt 0:00:21]} 7. O-O {[%emt 0:02:20]} Nc6 {[%emt 0:00:25]} 8. d3 {[%emt 0:00:22]} Bd6 {[%emt 0:00:07]} 9. Re1 {[%emt 0:01:18]} O-O {[%emt 0:00:15]} 10. Na3 {[%emt 0:15:07]} Re8 {[%emt 0:01:18]} 11. Nc2 {[%emt 0:01:59]} e5 {[%emt 0:00:13]} 12. Rb1 {[%emt 0:02:37]} a5 {[%emt 0:02:44]} 13. b3 {[%emt 0:01:31]} Bf5 {[%emt 0:01:54]} 14. a3 {[%emt 0:01:28]} h6 {[%emt 0:02:17]} 15. b4 {[%emt 0:01:54]} axb4 {[%emt 0:00:54]} 16. axb4 {[%emt 0:00:11]} Bh7 {[%emt 0:03:59]} 17. c5 {[%emt 0:06:30]} Bb8 {[%emt 0:13:10]} 18. b5 {[%emt 0:04:24]} Ne7 {[%emt 0:05:04]} 19. Nb4 {[%emt 0:05:49]} Ned5 {[%emt 0:03:56]} 20. Bd2 {[%emt 0:00:57]} Nxb4 {[%emt 0:15:38]} 21. Bxb4 {[%emt 0:01:06]} Nd5 {[%emt 0:02:37]} 22. Nxd4 {[%emt 0:13:56]} Nf4 {[%emt 0:16:36]} 23. Nc6 {[%emt 0:15:01]} bxc6 {[%emt 0:01:42]} 24. gxf4 {[%emt 0:00:08]} Ra2 {[%emt 0:06:23]} 25. Bxc6 {[%emt 0:01:32]} Re6 {[%emt 0:02:41]} 26. Qf3 {[%emt 0:04:05]} Qh4 {[%emt 0:02:35]} 27. Re2 {[%emt 0:05:47]} e4 {[%emt 0:08:48]} 28. dxe4 {[%emt 0:02:44]} Rxe2 {[%emt 0:07:56]} 29. Qxe2 {[%emt 0:00:07]} Bxf4 {[%emt 0:01:19]} 30. f3 {[%emt 0:00:42]} Bf5 {[%emt 0:00:23]} 31. Kh1 {[%emt 0:02:09]} Bh3 {[%emt 0:00:14]} 32. Rg1 {[%emt 0:02:45]} Re5 {[%emt 0:00:05]} 33. Bc3 {[%emt 0:02:23]} Rg5 {[%emt 0:00:43]} 34. Rxg5 {[%emt 0:00:14]} hxg5 {[%emt 0:00:02]} 35. e5 {[%emt 0:02:05]} g4 {[%emt 0:00:24]} 36. e6 {[%emt 0:00:31]} g3 {[%emt 0:02:18]} 37. exf7+ {[%emt 0:00:17]} Kh7 {[%emt 0:00:18]} 38. Qe4+ {[%emt 0:00:25]} Kh6 {[%emt 0:00:12]} 39. Be1 {[%emt 0:01:50]} Bg2+ {[%emt 0:00:43]} 40. Kxg2 {[%emt 0:00:04]} Qxh2+ {[%emt 0:00:06]} 41. Kf1 {[%emt 0:30:04]} g2+ {[%emt 0:30:45]} 42. Ke2 {[%emt 0:00:00]} g1=Q+ {[%emt 0:00:00]} 43. Kd3 {[%emt 0:00:00]} Qxc5 {[%emt 0:00:00]} 44. Qe6+ {[%emt 0:00:00]} g6 {[%emt 0:00:00]} 45. Bc3 {[%emt 0:00:00]} Qd6+ {[%emt 0:00:00]} 46. Bd5 {[%emt 0:00:00]} Qa3 {[%emt 0:00:00]} 47. Bb3 {[%emt 0:00:00]} Qh4 {[%emt 0:00:00]} 48. Qc8 {[%emt 0:00:00]} Qd6+ {[%emt 0:00:00]} 49. Bd4 {[%emt 0:00:00]} Qhd8 {[%emt 0:02:52]} 50. Qh3+ {[%emt 0:00:00]} Kg5 {[%emt 0:00:03]} 51. Qg4+ {[%emt 0:00:00]} Kh6 {[%emt 0:00:03]} 52. Qh3+ {[%emt 0:00:00]} 1/2-1/2

[Event "Xtracon Invite Chess 2020"]
[Site "Vaerloese"]
[Date "2020.01.18"]
[Round "8.2"]
[White "Thybo, Jesper Sondergaard"]
[Black "Sveshnikov, Evgeny"]
[Result "1-0"]
[ECO "E04"]
[WhiteElo "2579"]
[BlackElo "2481"]
[Annotator "ChessBase"]
[PlyCount "57"]
[EventDate "2020.01.13"]
[EventType "tourn"]
[EventCountry "DEN"]
[SourceTitle "playchess.com"]
[Source "ChessBase"]
[SourceQuality "1"]
[TimeControl "40/5400+30:1800+30"]

1. d4 {[%emt 0:00:00]} d5 {[%emt 0:00:00]} 2. c4 {[%emt 0:00:00]} e6 {[%emt 0:00:00]} 3. Nf3 {[%emt 0:00:03]} Nf6 {[%emt 0:00:00]} 4. g3 {[%emt 0:00:18]} dxc4 {[%emt 0:00:07]} 5. Bg2 {[%emt 0:00:15]} c5 {[%emt 0:00:08]} 6. O-O {[%emt 0:00:35]} Nc6 {[%emt 0:00:07]} 7. dxc5 {[%emt 0:00:27]} Qxd1 {[%emt 0:00:15]} 8. Rxd1 {[%emt 0:00:07]} Bxc5 {[%emt 0:00:07]} 9. Nbd2 {[%emt 0:00:18]} c3 {[%emt 0:00:12]} 10. bxc3 {[%emt 0:00:08]} O-O {[%emt 0:03:03]} 11. Nb3 {[%emt 0:00:37]} Be7 {[%emt 0:00:15]} 12. Nfd4 {[%emt 0:00:26]} Bd7 {[%emt 0:02:05]} 13. Nb5 {[%emt 0:00:32]} Rfd8 {[%emt 0:15:18]} 14. Be3 {[%emt 0:00:46]} Ne5 {[%emt 0:52:14]} 15. a4 {[%emt 0:00:38]} a6 {[%emt 0:03:26]} 16. Bxb7 {[%emt 0:12:12]} axb5 {[%emt 0:00:16]} 17. Bxa8 {[%emt 0:01:44]} Rxa8 {[%emt 0:06:27]} 18. Bd4 {[%emt 0:00:37]} Neg4 {[%emt 0:01:50]} 19. axb5 {[%emt 0:22:59]} Rxa1 {[%emt 0:00:22]} 20. Rxa1 {[%emt 0:00:09]} Bxb5 {[%emt 0:00:20]} 21. h3 {[%emt 0:05:29]} e5 {[%emt 0:01:03]} 22. Ra8+ {[%emt 0:02:27]} Ne8 {[%emt 0:04:18]} 23. hxg4 {[%emt 0:02:11]} exd4 {[%emt 0:00:11]} 24. Nxd4 {[%emt 0:00:05]} Bd7 {[%emt 0:00:11]} 25. Ra7 {[%emt 0:00:19]} Nf6 {[%emt 0:00:32]} 26. g5 {[%emt 0:00:06]} Bc5 {[%emt 0:00:28]} 27. Rb7 {[%emt 0:00:14]} Bxd4 {[%emt 0:01:34]} 28. gxf6 {[%emt 0:01:13]} Bxc3 {[%emt 0:00:19]} 29. Rb8+ {[%emt 0:00:08]} 1-0

[Event "Xtracon Invite Chess 2020"]
[Site "Vaerloese"]
[Date "2020.01.18"]
[Round "8.3"]
[White "Antonsen, Mikkel"]
[Black "Kristensen, Kaare Hove"]
[Result "1/2-1/2"]
[ECO "A05"]
[WhiteElo "2384"]
[BlackElo "2350"]
[Annotator "ChessBase"]
[PlyCount "100"]
[EventDate "2020.01.13"]
[EventType "tourn"]
[EventCountry "DEN"]
[SourceTitle "playchess.com"]
[Source "ChessBase"]
[SourceQuality "1"]
[TimeControl "40/5400+30:1800+30"]

1. Nf3 {[%emt 0:00:00]} Nf6 {[%emt 0:00:25]} 2. g3 {[%emt 0:00:00]} c5 {[%emt 0:00:52]} 3. Bg2 {[%emt 0:00:00]} Nc6 {[%emt 0:01:00]} 4. O-O {[%emt 0:02:54]} d5 {[%emt 0:00:34]} 5. d4 {[%emt 0:00:15]} e6 {[%emt 0:00:58]} 6. c4 {[%emt 0:00:07]} dxc4 {[%emt 0:00:27]} 7. dxc5 {[%emt 0:00:51]} Qxd1 {[%emt 0:00:28]} 8. Rxd1 {[%emt 0:00:05]} Bxc5 {[%emt 0:00:18]} 9. Nbd2 {[%emt 0:00:04]} c3 {[%emt 0:00:31]} 10. bxc3 {[%emt 0:00:06]} O-O {[%emt 0:00:41]} 11. Nb3 {[%emt 0:00:16]} Be7 {[%emt 0:00:12]} 12. c4 {[%emt 0:00:07]} Bd7 {[%emt 0:06:05]} 13. Bb2 {[%emt 0:02:50]} Rfd8 {[%emt 0:03:00]} 14. Nfd4 {[%emt 0:00:08]} Rac8 {[%emt 0:05:31]} 15. Nb5 {[%emt 0:00:06]} Be8 {[%emt 0:12:51]} 16. c5 {[%emt 0:02:38]} Nb4 {[%emt 0:29:11]} 17. Nd6 {[%emt 0:07:11]} Bxd6 {[%emt 0:00:50]} 18. cxd6 {[%emt 0:00:21]} Bc6 {[%emt 0:01:52]} 19. Rac1 {[%emt 0:13:21]} Bxg2 {[%emt 0:03:35]} 20. Kxg2 {[%emt 0:00:20]} Rxc1 {[%emt 0:10:41]} 21. Rxc1 {[%emt 0:00:32]} h6 {[%emt 0:10:08]} 22. e4 {[%emt 0:08:01]} Nd3 {[%emt 0:02:34]} 23. Bxf6 {[%emt 0:01:31]} gxf6 {[%emt 0:00:18]} 24. Rc7 {[%emt 0:02:11]} Rxd6 {[%emt 0:00:35]} 25. Rxb7 {[%emt 0:00:09]} Ra6 {[%emt 0:00:16]} 26. Rd7 {[%emt 0:00:08]} Nb4 {[%emt 0:02:10]} 27. Rd4 {[%emt 0:00:31]} Nxa2 {[%emt 0:01:06]} 28. Nc5 {[%emt 0:00:11]} Rc6 {[%emt 0:01:42]} 29. Nd3 {[%emt 0:00:28]} Nc3 {[%emt 0:01:31]} 30. e5 {[%emt 0:02:39]} fxe5 {[%emt 0:00:37]} 31. Rd8+ {[%emt 0:00:04]} Kg7 {[%emt 0:00:29]} 32. Rd7 {[%emt 0:00:04]} Kf6 {[%emt 0:01:59]} 33. Rxf7+ {[%emt 0:00:12]} Kxf7 {[%emt 0:00:05]} 34. Nxe5+ {[%emt 0:00:06]} Kf6 {[%emt 0:02:26]} 35. Nxc6 {[%emt 0:00:04]} a6 {[%emt 0:00:12]} 36. f4 {[%emt 0:00:12]} Nd5 {[%emt 0:00:55]} 37. Kf3 {[%emt 0:00:11]} Ne7 {[%emt 0:00:32]} 38. Na5 {[%emt 0:00:14]} h5 {[%emt 0:00:26]} 39. g4 {[%emt 0:00:43]} hxg4+ {[%emt 0:00:39]} 40. Kxg4 {[%emt 0:00:05]} Nf5 {[%emt 0:00:35]} 41. h4 {[%emt 0:30:16]} Kg6 {[%emt 0:11:32]} 42. Nc4 {[%emt 0:00:00]} Nh6+ {[%emt 0:01:12]} 43. Kf3 {[%emt 0:00:00]} Nf5 {[%emt 0:03:12]} 44. Kg4 {[%emt 0:00:00]} Ne7 {[%emt 0:03:36]} 45. Kf3 {[%emt 0:00:00]} Nc6 {[%emt 0:02:24]} 46. Ke4 {[%emt 0:00:00]} a5 {[%emt 0:02:03]} 47. h5+ {[%emt 0:00:00]} Kf6 {[%emt 0:04:04]} 48. h6 {[%emt 0:00:00]} a4 {[%emt 0:01:14]} 49. h7 {[%emt 0:00:00]} Kg7 {[%emt 0:00:18]} 50. f5 {[%emt 0:00:00]} exf5+ 1/2-1/2

[Event "Xtracon Invite Chess 2020"]
[Site "Vaerloese"]
[Date "2020.01.19"]
[Round "9.2"]
[White "Kristensen, Kaare Hove"]
[Black "Brunello, Sabino"]
[Result "1-0"]
[ECO "B80"]
[WhiteElo "2350"]
[BlackElo "2536"]
[Annotator "ChessBase"]
[PlyCount "79"]
[EventDate "2020.01.13"]
[EventType "tourn"]
[EventCountry "DEN"]
[SourceTitle "playchess.com"]
[Source "ChessBase"]
[SourceQuality "1"]
[TimeControl "40/5400+30:1800+30"]

1. e4 {[%emt 0:00:00]} c5 {[%emt 0:00:23]} 2. Nf3 {[%emt 0:00:07]} d6 {[%emt 0:00:27]} 3. d4 {[%emt 0:00:19]} cxd4 {[%emt 0:00:05]} 4. Nxd4 {[%emt 0:00:09]} Nf6 {[%emt 0:00:03]} 5. Nc3 {[%emt 0:00:10]} e6 {[%emt 0:00:13]} 6. Be3 {[%emt 0:01:15]} Be7 {[%emt 0:02:10]} 7. f4 {[%emt 0:01:42]} a6 {[%emt 0:07:43]} 8. Qf3 {[%emt 0:01:18]} Qc7 {[%emt 0:07:55]} 9. g4 {[%emt 0:05:43]} b5 {[%emt 0:11:45]} 10. g5 {[%emt 0:02:31]} Nfd7 {[%emt 0:00:24]} 11. O-O-O {[%emt 0:04:55]} b4 {[%emt 0:09:31]} 12. Nd5 {[%emt 0:18:11]} exd5 {[%emt 0:01:00]} 13. Nf5 {[%emt 0:00:11]} dxe4 {[%emt 0:22:57]} 14. Qxe4 {[%emt 0:04:23]} Nc5 {[%emt 0:00:40]} 15. Qxe7+ {[%emt 0:14:38]} Qxe7 {[%emt 0:01:01]} 16. Nxe7 {[%emt 0:00:22]} Kxe7 {[%emt 0:01:08]} 17. Bxc5 {[%emt 0:00:14]} dxc5 {[%emt 0:01:02]} 18. Bg2 {[%emt 0:00:12]} Ra7 {[%emt 0:01:17]} 19. Rhe1+ {[%emt 0:00:59]} Be6 {[%emt 0:00:02]} 20. f5 {[%emt 0:00:32]} a5 {[%emt 0:04:56]} 21. fxe6 {[%emt 0:15:08]} fxe6 {[%emt 0:00:02]} 22. Bd5 {[%emt 0:02:43]} Ra6 {[%emt 0:00:21]} 23. Bc4 {[%emt 0:00:10]} Rb6 {[%emt 0:01:07]} 24. Rd2 {[%emt 0:02:27]} Rc8 {[%emt 0:09:51]} 25. Rde2 {[%emt 0:02:12]} Rcc6 {[%emt 0:00:40]} 26. Re3 {[%emt 0:09:27]} Rd6 {[%emt 0:08:10]} 27. b3 {[%emt 0:00:18]} Nd7 {[%emt 0:01:28]} 28. Rh3 {[%emt 0:00:17]} Nf8 {[%emt 0:01:18]} 29. Rf3 {[%emt 0:01:17]} Ng6 {[%emt 0:01:42]} 30. Rh3 {[%emt 0:00:23]} Nf8 {[%emt 0:00:40]} 31. Rf1 {[%emt 0:05:25]} Rd4 {[%emt 0:00:42]} 32. Rhf3 {[%emt 0:00:07]} Ng6 {[%emt 0:00:15]} 33. Rf7+ {[%emt 0:00:11]} Kd6 {[%emt 0:00:01]} 34. Rxg7 {[%emt 0:00:13]} Rh4 {[%emt 0:00:07]} 35. Rd1+ {[%emt 0:00:34]} Ke5 {[%emt 0:00:15]} 36. Rf7 {[%emt 0:02:22]} Rd6 {[%emt 0:04:36]} 37. Re1+ {[%emt 0:00:46]} Re4 {[%emt 0:00:04]} 38. Rxe4+ {[%emt 0:01:09]} Kxe4 {[%emt 0:00:08]} 39. Rxh7 {[%emt 0:01:49]} Nf4 {[%emt 0:00:01]} 40. g6 {[%emt 0:00:58] Kd5} 1-0

[Event "Xtracon Invite Chess 2020"]
[Site "Vaerloese"]
[Date "2020.01.19"]
[Round "9.5"]
[White "Sylvan, Jacob"]
[Black "Antonsen, Mikkel"]
[Result "1/2-1/2"]
[ECO "A36"]
[WhiteElo "2325"]
[BlackElo "2384"]
[Annotator "ChessBase"]
[PlyCount "30"]
[EventDate "2020.01.13"]
[EventType "tourn"]
[EventCountry "DEN"]
[SourceTitle "playchess.com"]
[Source "ChessBase"]
[SourceQuality "1"]
[TimeControl "40/5400+30:1800+30"]

1. c4 {[%emt 0:00:00]} c5 {[%emt 0:00:00]} 2. g3 {[%emt 0:00:00]} Nc6 {[%emt 0:00:05]} 3. Bg2 {[%emt 0:00:05]} g6 {[%emt 0:00:20]} 4. Nc3 {[%emt 0:00:24]} Bg7 {[%emt 0:00:06]} 5. a3 {[%emt 0:00:13]} b6 {[%emt 0:00:17]} 6. e3 {[%emt 0:01:36]} Ba6 {[%emt 0:04:33]} 7. d3 {[%emt 0:01:56]} e6 {[%emt 0:09:34]} 8. Nge2 {[%emt 0:10:31]} Nge7 {[%emt 0:00:11]} 9. b4 {[%emt 0:02:54]} Bb7 {[%emt 0:02:21]} 10. Rb1 {[%emt 0:03:00]} Rb8 {[%emt 0:05:48]} 11. bxc5 {[%emt 0:19:24]} bxc5 {[%emt 0:00:06]} 12. Rb5 {[%emt 0:00:39]} a6 {[%emt 0:02:10]} 13. Rb1 {[%emt 0:01:00]} d5 {[%emt 0:04:40]} 14. cxd5 {[%emt 0:03:46]} exd5 {[%emt 0:00:22]} 15. d4 {[%emt 0:02:41]} c4 {[%emt 0:07:48]} 1/2-1/2